[Event "*** Titled Tuesday Blitz"]
[Site "Chess.com"]
[Date "2018.08.07"]
[Round "6"]
[White "jposthuma"]
[Black "yoolund"]
[Result "0-1"]
[WhiteElo "2373"]
[BlackElo "2508"]
[TimeControl "180+2"]
[EndTime "14:18:30 PDT"]
[Termination "yoolund won on time"]

1. d4 {[%clk 0:02:38.9]} 1... Nf6 {[%clk 0:02:58.8]} 2. c4 {[%clk 0:02:39.9]}
2... g6 {[%clk 0:02:58.8]} 3. Nc3 {[%clk 0:02:41.1]} 3... Bg7 {[%clk 0:02:59.6]}
4. e4 {[%clk 0:02:35.6]} 4... O-O {[%clk 0:02:59.4]} 5. f3 {[%clk 0:02:36.1]}
5... d6 {[%clk 0:02:58.1]} 6. Be3 {[%clk 0:02:37.1]} 6... c5 {[%clk 0:02:58.8]}
7. dxc5 {[%clk 0:02:38.1]} 7... dxc5 {[%clk 0:02:59.1]} 8. Qxd8 {[%clk 0:02:39]}
8... Rxd8 {[%clk 0:03:00.9]} 9. Bxc5 {[%clk 0:02:40.6]} 9... Nc6 {[%clk
0:02:59.5]} 10. Nge2 {[%clk 0:02:41]} 10... b6 {[%clk 0:02:56.1]} 11. Ba3 {[%clk
0:02:37]} 11... e6 {[%clk 0:02:44.6]} 12. Rd1 {[%clk 0:02:05.6]} 12... Bb7
{[%clk 0:02:28.8]} 13. b3 {[%clk 0:01:54.3]} 13... Ne5 {[%clk 0:02:04]} 14. Nc1
{[%clk 0:01:47]} 14... Nh5 {[%clk 0:01:54.9]} 15. Nb5 {[%clk 0:01:31.1]} 15...
Rxd1+ {[%clk 0:01:49.1]} 16. Kxd1 {[%clk 0:01:31.5]} 16... Rd8+ {[%clk
0:01:50.5]} 17. Kc2 {[%clk 0:01:29.9]} 17... a6 {[%clk 0:01:20.7]} 18. Nc3
{[%clk 0:01:12.5]} 18... Bh6 {[%clk 0:01:06.9]} 19. Nd3 {[%clk 0:01:01.6]} 19...
Nxd3 {[%clk 0:01:03.1]} 20. Bxd3 {[%clk 0:01:03.5]} 20... Nf4 {[%clk 0:01:04.3]}
21. Bc1 {[%clk 0:00:26.8]} 21... Nxd3 {[%clk 0:00:08.5]} 22. Bxh6 {[%clk
0:00:26.9]} 22... Nb4+ {[%clk 0:00:09]} 23. Kb2 {[%clk 0:00:21.4]} 23... Nd3+
{[%clk 0:00:08.3]} 24. Kc2 {[%clk 0:00:20]} 24... Nb4+ {[%clk 0:00:09]} 25. Kc1
{[%clk 0:00:17.2]} 25... Rd3 {[%clk 0:00:08.7]} 26. Kb2 {[%clk 0:00:15.4]} 26...
f5 {[%clk 0:00:07.1]} 27. exf5 {[%clk 0:00:08.9]} 27... gxf5 {[%clk 0:00:09]}
28. Rd1 {[%clk 0:00:08.9]} 28... Rxd1 {[%clk 0:00:08.9]} 29. Nxd1 {[%clk
0:00:10.8]} 29... Nd3+ {[%clk 0:00:10.3]} 30. Kc3 {[%clk 0:00:09.7]} 30... Ne1
{[%clk 0:00:12.1]} 31. Ne3 {[%clk 0:00:07.8]} 31... e5 {[%clk 0:00:13]} 32. f4
{[%clk 0:00:03.3]} 32... exf4 {[%clk 0:00:12.3]} 33. Bxf4 {[%clk 0:00:03.6]}
33... Nxg2 {[%clk 0:00:09.1]} 34. Nxg2 {[%clk 0:00:03.7]} 34... Bxg2 {[%clk
0:00:10.9]} 35. Kd4 {[%clk 0:00:04.4]} 35... Kf7 {[%clk 0:00:09.5]} 36. Ke5
{[%clk 0:00:04.8]} 36... Be4 {[%clk 0:00:09.2]} 37. Kd6 {[%clk 0:00:03.1]} 37...
Bb1 {[%clk 0:00:10]} 38. b4 {[%clk 0:00:02.5]} 38... Bxa2 {[%clk 0:00:10.5]} 39.
c5 {[%clk 0:00:03.2]} 39... bxc5 {[%clk 0:00:12.4]} 40. bxc5 {[%clk 0:00:04.3]}
40... Be6 {[%clk 0:00:13.5]} 41. Kc7 {[%clk 0:00:03.7]} 41... a5 {[%clk
0:00:14.6]} 42. Kb6 {[%clk 0:00:03.4]} 42... a4 {[%clk 0:00:15.2]} 43. Ka5
{[%clk 0:00:02.8]} 43... a3 {[%clk 0:00:15.4]} 44. Kb4 {[%clk 0:00:03.5]} 44...
a2 {[%clk 0:00:16.3]} 45. Be5 {[%clk 0:00:04.6]} 45... f4 {[%clk 0:00:16.6]} 46.
Ka3 {[%clk 0:00:04.4]} 46... f3 {[%clk 0:00:17.8]} 0-1

[Event "*** Titled Tuesday Blitz"]
[Site "Chess.com"]
[Date "2018.08.07"]
[Round "6"]
[White "oskariot"]
[Black "chess4life23"]
[Result "1-0"]
[WhiteElo "2472"]
[BlackElo "2294"]
[TimeControl "180+2"]
[EndTime "14:18:33 PDT"]
[Termination "oskariot won by resignation"]

1. e4 {[%clk 0:01:14.2]} 1... c6 {[%clk 0:02:57]} 2. d4 {[%clk 0:01:14.2]} 2...
d5 {[%clk 0:02:58.9]} 3. e5 {[%clk 0:01:15.7]} 3... Bf5 {[%clk 0:02:58.2]} 4.
Nf3 {[%clk 0:01:17.6]} 4... e6 {[%clk 0:02:58.5]} 5. Nbd2 {[%clk 0:01:19.5]}
5... c5 {[%clk 0:02:53.6]} 6. dxc5 {[%clk 0:01:20.7]} 6... Bxc5 {[%clk
0:02:53.4]} 7. Nb3 {[%clk 0:01:22.6]} 7... Bb6 {[%clk 0:02:47.7]} 8. Nbd4 {[%clk
0:01:22.2]} 8... Bg6 {[%clk 0:02:45.9]} 9. c3 {[%clk 0:01:21.6]} 9... Ne7 {[%clk
0:02:42.7]} 10. Be2 {[%clk 0:01:16.3]} 10... Nec6 {[%clk 0:02:42.7]} 11. O-O
{[%clk 0:01:17]} 11... a6 {[%clk 0:02:35.1]} 12. Be3 {[%clk 0:01:16.9]} 12...
Bc7 {[%clk 0:02:34.4]} 13. Bf4 {[%clk 0:01:14.3]} 13... O-O {[%clk 0:02:31]} 14.
Re1 {[%clk 0:01:15.1]} 14... Nd7 {[%clk 0:02:30.4]} 15. Bf1 {[%clk 0:01:14.7]}
15... Qb8 {[%clk 0:02:29.9]} 16. Nxc6 {[%clk 0:01:09.5]} 16... bxc6 {[%clk
0:02:31.8]} 17. Qa4 {[%clk 0:01:02.7]} 17... Qb7 {[%clk 0:01:26]} 18. Nd4 {[%clk
0:00:54.9]} 18... Nb8 {[%clk 0:00:43.7]} 19. Nb3 {[%clk 0:00:49.1]} 19... Bb6
{[%clk 0:00:43.9]} 20. Be3 {[%clk 0:00:45.5]} 20... Nd7 {[%clk 0:00:41.5]} 21.
Bxb6 {[%clk 0:00:27.8]} 21... Qxb6 {[%clk 0:00:43.4]} 22. Qb4 {[%clk 0:00:26.2]}
22... Rab8 {[%clk 0:00:39.3]} 23. Qa5 {[%clk 0:00:20.5]} 23... Qxa5 {[%clk
0:00:35.5]} 24. Nxa5 {[%clk 0:00:22.3]} 24... Rxb2 {[%clk 0:00:35.4]} 25. Nxc6
{[%clk 0:00:23.3]} 25... Re8 {[%clk 0:00:29]} 26. a4 {[%clk 0:00:19.8]} 26...
Rb6 {[%clk 0:00:29.8]} 27. Nd4 {[%clk 0:00:14.9]} 27... Rc8 {[%clk 0:00:22.8]}
28. a5 {[%clk 0:00:14.7]} 28... Rb2 {[%clk 0:00:20.7]} 29. Bxa6 {[%clk
0:00:15.8]} 29... Rxc3 {[%clk 0:00:21.4]} 30. Bb5 {[%clk 0:00:12.4]} 30... Nc5
{[%clk 0:00:08.2]} 31. Rec1 {[%clk 0:00:13.4]} 31... Rxc1+ {[%clk 0:00:02.7]}
32. Rxc1 {[%clk 0:00:14.5]} 32... Rb1 {[%clk 0:00:04.2]} 33. Rxb1 {[%clk
0:00:13.5]} 33... Bxb1 {[%clk 0:00:06.1]} 34. a6 {[%clk 0:00:15]} 34... Nxa6
{[%clk 0:00:06.3]} 35. Bxa6 {[%clk 0:00:16.1]} 35... Kf8 {[%clk 0:00:07.8]} 36.
f4 {[%clk 0:00:17.3]} 36... Ke7 {[%clk 0:00:09.2]} 37. Kf2 {[%clk 0:00:18.6]}
37... f6 {[%clk 0:00:10.6]} 38. Ke3 {[%clk 0:00:19.3]} 38... Be4 {[%clk
0:00:10.3]} 39. Bc8 {[%clk 0:00:20.2]} 39... Bxg2 {[%clk 0:00:10.4]} 40. Bxe6
{[%clk 0:00:19.7]} 40... fxe5 {[%clk 0:00:12.3]} 41. fxe5 {[%clk 0:00:20.5]}
41... g5 {[%clk 0:00:13.8]} 42. Bf5 {[%clk 0:00:20.7]} 42... h6 {[%clk
0:00:14.2]} 43. Nc6+ {[%clk 0:00:18.4]} 43... Ke8 {[%clk 0:00:12.9]} 44. Kd4
{[%clk 0:00:18.4]} 44... h5 {[%clk 0:00:12.2]} 45. e6 {[%clk 0:00:17.9]} 45...
Bf3 {[%clk 0:00:09.9]} 46. Bg6+ {[%clk 0:00:18.6]} 46... Kf8 {[%clk 0:00:08.8]}
47. e7+ {[%clk 0:00:19.7]} 1-0

[Event "*** Titled Tuesday Blitz"]
[Site "Chess.com"]
[Date "2018.08.07"]
[Round "6"]
[White "DoctorSocrates"]
[Black "GMKrikor"]
[Result "1-0"]
[WhiteElo "2560"]
[BlackElo "2769"]
[TimeControl "180+2"]
[EndTime "14:18:37 PDT"]
[Termination "DoctorSocrates won on time"]

1. Nc3 {[%clk 0:03:01.9]} 1... d5 {[%clk 0:02:56.6]} 2. e4 {[%clk 0:03:02.1]}
2... dxe4 {[%clk 0:02:47.7]} 3. Nxe4 {[%clk 0:03:01.9]} 3... Bf5 {[%clk
0:02:48.9]} 4. Ng3 {[%clk 0:03:01.9]} 4... Bg6 {[%clk 0:02:50.1]} 5. Nf3 {[%clk
0:03:03.5]} 5... e6 {[%clk 0:02:48.8]} 6. h4 {[%clk 0:03:01.8]} 6... Nf6 {[%clk
0:02:16]} 7. h5 {[%clk 0:02:58.5]} 7... Be4 {[%clk 0:02:16.8]} 8. Nxe4 {[%clk
0:02:55.7]} 8... Nxe4 {[%clk 0:02:17.6]} 9. Qe2 {[%clk 0:02:55.1]} 9... Nd6
{[%clk 0:02:02.9]} 10. g4 {[%clk 0:02:53.2]} 10... c5 {[%clk 0:01:57.4]} 11. Bg2
{[%clk 0:02:52.7]} 11... Nc6 {[%clk 0:01:59.1]} 12. b3 {[%clk 0:02:47.2]} 12...
Be7 {[%clk 0:01:59.7]} 13. Bb2 {[%clk 0:02:37.6]} 13... Bf6 {[%clk 0:02:00.7]}
14. Ne5 {[%clk 0:02:36.8]} 14... Nxe5 {[%clk 0:01:36]} 15. Bxe5 {[%clk
0:02:38.7]} 15... O-O {[%clk 0:01:37.3]} 16. f4 {[%clk 0:02:34.8]} 16... Rc8
{[%clk 0:01:32.3]} 17. g5 {[%clk 0:02:26.9]} 17... Bxe5 {[%clk 0:01:33]} 18.
fxe5 {[%clk 0:02:28.8]} 18... Nf5 {[%clk 0:01:34.3]} 19. Qg4 {[%clk 0:02:16.1]}
19... Qc7 {[%clk 0:01:33.4]} 20. Qf4 {[%clk 0:02:08.5]} 20... Rfd8 {[%clk
0:01:28.4]} 21. c3 {[%clk 0:02:05.6]} 21... Rd7 {[%clk 0:00:59.3]} 22. O-O-O
{[%clk 0:02:05.3]} 22... Rcd8 {[%clk 0:00:57.5]} 23. Be4 {[%clk 0:02:01]} 23...
c4 {[%clk 0:00:54.1]} 24. g6 {[%clk 0:01:55.1]} 24... cxb3 {[%clk 0:00:48.9]}
25. axb3 {[%clk 0:01:55.4]} 25... Nd4 {[%clk 0:00:40.1]} 26. Kb2 {[%clk
0:01:52.3]} 26... Ne2 {[%clk 0:00:38.9]} 27. Qe3 {[%clk 0:01:46.2]} 27... Ng3
{[%clk 0:00:29.3]} 28. Qxg3 {[%clk 0:01:31.2]} 28... Rxd2+ {[%clk 0:00:30.1]}
29. Rxd2 {[%clk 0:01:31.8]} 29... Rxd2+ {[%clk 0:00:30.7]} 30. Bc2 {[%clk
0:01:33.3]} 30... h6 {[%clk 0:00:26.5]} 31. gxf7+ {[%clk 0:01:32.3]} 31... Qxf7
{[%clk 0:00:26.7]} 32. Rg1 {[%clk 0:01:27.8]} 32... a5 {[%clk 0:00:22.9]} 33.
Qe3 {[%clk 0:01:27]} 33... Rh2 {[%clk 0:00:21.5]} 34. Qxh6 {[%clk 0:01:22.5]}
34... Rxc2+ {[%clk 0:00:21.9]} 35. Kxc2 {[%clk 0:01:14.9]} 35... Qf2+ {[%clk
0:00:21.9]} 36. Kd3 {[%clk 0:01:16]} 36... Qxg1 {[%clk 0:00:17.9]} 37. Qxe6+
{[%clk 0:01:16.7]} 37... Kh7 {[%clk 0:00:11.3]} 38. Qf5+ {[%clk 0:01:14.2]}
38... Kh6 {[%clk 0:00:11.2]} 39. Kc4 {[%clk 0:00:59.8]} 39... Qb6 {[%clk
0:00:11.6]} 40. e6 {[%clk 0:00:57.5]} 40... Qc6+ {[%clk 0:00:12.6]} 41. Kd3
{[%clk 0:00:56.4]} 41... Qd6+ {[%clk 0:00:09.7]} 42. Ke4 {[%clk 0:00:45]} 42...
Qc6+ {[%clk 0:00:09.3]} 43. Kf4 {[%clk 0:00:45.2]} 43... Qd6+ {[%clk 0:00:04.1]}
44. Ke4 {[%clk 0:00:37.3]} 44... Qc6+ {[%clk 0:00:05.2]} 45. Kd3 {[%clk
0:00:38.4]} 45... Qd6+ {[%clk 0:00:04.1]} 46. Kc2 {[%clk 0:00:33.8]} 46... Qh2+
{[%clk 0:00:04.1]} 47. Kb1 {[%clk 0:00:34.8]} 47... Qg1+ {[%clk 0:00:03.4]} 48.
Kb2 {[%clk 0:00:35.9]} 48... Qh2+ {[%clk 0:00:03.4]} 49. Qc2 {[%clk 0:00:32.6]}
49... Qxh5 {[%clk 0:00:03.5]} 50. e7 {[%clk 0:00:29.7]} 1-0

[Event "*** Titled Tuesday Blitz"]
[Site "Chess.com"]
[Date "2018.08.07"]
[Round "6"]
[White "misha_melnichuk"]
[Black "Kislov_Oleg"]
[Result "1-0"]
[WhiteElo "2602"]
[BlackElo "2372"]
[TimeControl "180+2"]
[EndTime "14:19:10 PDT"]
[Termination "misha_melnichuk won by resignation"]

1. Nf3 {[%clk 0:02:58.4]} 1... d5 {[%clk 0:03:00.3]} 2. g3 {[%clk 0:03:00.3]}
2... Nf6 {[%clk 0:03:01.4]} 3. Bg2 {[%clk 0:03:02]} 3... Bg4 {[%clk 0:03:02.5]}
4. O-O {[%clk 0:03:03.7]} 4... Nbd7 {[%clk 0:03:03.5]} 5. d4 {[%clk 0:03:03.7]}
5... c6 {[%clk 0:03:03.5]} 6. c4 {[%clk 0:03:04.6]} 6... e6 {[%clk 0:03:04.3]}
7. b3 {[%clk 0:03:04]} 7... Ne4 {[%clk 0:03:04.3]} 8. Bb2 {[%clk 0:03:04]} 8...
Bd6 {[%clk 0:03:03.9]} 9. Nc3 {[%clk 0:03:03.3]} 9... f5 {[%clk 0:03:04.1]} 10.
Qc2 {[%clk 0:02:56.3]} 10... O-O {[%clk 0:03:03]} 11. e3 {[%clk 0:02:56.8]}
11... Bxf3 {[%clk 0:02:54.8]} 12. Bxf3 {[%clk 0:02:57]} 12... Ndf6 {[%clk
0:02:52.7]} 13. Bg2 {[%clk 0:02:55.5]} 13... Nxc3 {[%clk 0:02:51.4]} 14. Bxc3
{[%clk 0:02:55.7]} 14... Ne4 {[%clk 0:02:48]} 15. Bb2 {[%clk 0:02:56.6]} 15...
Qe7 {[%clk 0:02:45.5]} 16. a3 {[%clk 0:02:51.1]} 16... h5 {[%clk 0:02:45.3]} 17.
f3 {[%clk 0:02:47.5]} 17... Nf6 {[%clk 0:02:39.4]} 18. Qf2 {[%clk 0:02:35.4]}
18... g5 {[%clk 0:02:32.7]} 19. Qe2 {[%clk 0:01:56.6]} 19... g4 {[%clk
0:02:18.1]} 20. f4 {[%clk 0:01:56.3]} 20... h4 {[%clk 0:02:10.6]} 21. gxh4
{[%clk 0:01:37.8]} 21... Rf7 {[%clk 0:01:55.8]} 22. Bc3 {[%clk 0:01:36.4]} 22...
Rh7 {[%clk 0:01:55.6]} 23. Be1 {[%clk 0:01:36.2]} 23... Bxa3 {[%clk 0:01:52.8]}
24. c5 {[%clk 0:01:33.5]} 24... Bxc5 {[%clk 0:01:43.5]} 25. dxc5 {[%clk
0:01:33.6]} 25... Qxc5 {[%clk 0:01:44.4]} 26. b4 {[%clk 0:01:31.9]} 26... Qb6
{[%clk 0:01:40.8]} 27. Bc3 {[%clk 0:01:30.3]} 27... Nd7 {[%clk 0:01:31.7]} 28.
h3 {[%clk 0:01:16.9]} 28... Rxh4 {[%clk 0:01:18.7]} 29. Qf2 {[%clk 0:01:10]}
29... Qd8 {[%clk 0:01:00.7]} 30. Qg3 {[%clk 0:00:55.1]} 30... Qe7 {[%clk
0:00:46.6]} 31. Be1 {[%clk 0:00:54]} 31... Rh7 {[%clk 0:00:47.3]} 32. hxg4
{[%clk 0:00:54.4]} 32... fxg4 {[%clk 0:00:48.2]} 33. Qxg4+ {[%clk 0:00:42.6]}
33... Rg7 {[%clk 0:00:48.6]} 34. Qf3 {[%clk 0:00:38.6]} 34... Kf7 {[%clk
0:00:46.7]} 35. Bc3 {[%clk 0:00:37]} 35... Nf6 {[%clk 0:00:43.4]} 36. Bd4 {[%clk
0:00:18.5]} 36... Rag8 {[%clk 0:00:41.7]} 37. Rf2 {[%clk 0:00:19.3]} 37... a6
{[%clk 0:00:40.1]} 38. Kf1 {[%clk 0:00:17]} 38... Qxb4 {[%clk 0:00:39.3]} 39.
Bxf6 {[%clk 0:00:14]} 39... Kxf6 {[%clk 0:00:35.2]} 40. f5 {[%clk 0:00:14.1]}
40... e5 {[%clk 0:00:28.6]} 41. Qh3 {[%clk 0:00:09.7]} 41... Qc4+ {[%clk
0:00:22.6]} 42. Kg1 {[%clk 0:00:10.2]} 42... Qg4 {[%clk 0:00:20.2]} 43. Qh6+
{[%clk 0:00:10.2]} 43... Kf7 {[%clk 0:00:21.2]} 44. Qe6+ {[%clk 0:00:10.4]}
44... Kf8 {[%clk 0:00:22.3]} 45. Qc8+ {[%clk 0:00:10.5]} 45... Kf7 {[%clk
0:00:21.3]} 46. Qxb7+ {[%clk 0:00:11.2]} 46... Kf6 {[%clk 0:00:21.3]} 47. Qxc6+
{[%clk 0:00:11.9]} 47... Kg5 {[%clk 0:00:22.7]} 48. Qxd5 {[%clk 0:00:10]} 48...
Kh4 {[%clk 0:00:21]} 49. Rc1 {[%clk 0:00:08.4]} 49... e4 {[%clk 0:00:22.1]} 50.
Kf1 {[%clk 0:00:07.1]} 50... Qxg2+ {[%clk 0:00:21.4]} 51. Rxg2 {[%clk
0:00:07.7]} 51... Rxg2 {[%clk 0:00:22.8]} 52. Qxe4+ {[%clk 0:00:08.8]} 52...
R2g4 {[%clk 0:00:24.4]} 53. Qh1+ {[%clk 0:00:09.1]} 53... Kg5 {[%clk 0:00:24.8]}
54. Ke2 {[%clk 0:00:09.1]} 1-0

[Event "*** Titled Tuesday Blitz"]
[Site "Chess.com"]
[Date "2018.08.07"]
[Round "6"]
[White "Kimster98"]
[Black "nihalsarin"]
[Result "1/2-1/2"]
[WhiteElo "2515"]
[BlackElo "2752"]
[TimeControl "180+2"]
[EndTime "14:19:23 PDT"]
[Termination "Game drawn by agreement"]

1. d4 {[%clk 0:03:01.9]} 1... f5 {[%clk 0:02:59.3]} 2. g3 {[%clk 0:03:01.8]}
2... Nf6 {[%clk 0:03:00.6]} 3. Bg2 {[%clk 0:03:03.1]} 3... e6 {[%clk 0:03:02]}
4. Nf3 {[%clk 0:03:04.4]} 4... d5 {[%clk 0:03:03.5]} 5. O-O {[%clk 0:03:04.9]}
5... Bd6 {[%clk 0:03:05.4]} 6. c4 {[%clk 0:03:06.3]} 6... c6 {[%clk 0:03:06.5]}
7. Bf4 {[%clk 0:03:04.4]} 7... Bxf4 {[%clk 0:03:05.6]} 8. gxf4 {[%clk
0:03:06.3]} 8... O-O {[%clk 0:03:07.5]} 9. Ne5 {[%clk 0:03:02.7]} 9... Nbd7
{[%clk 0:03:07]} 10. c5 {[%clk 0:03:01.8]} 10... Ng4 {[%clk 0:02:49.2]} 11. Nxg4
{[%clk 0:02:22]} 11... fxg4 {[%clk 0:02:51.1]} 12. e3 {[%clk 0:02:23.5]} 12...
Qh4 {[%clk 0:02:49.1]} 13. f3 {[%clk 0:02:16.9]} 13... g3 {[%clk 0:02:45.3]} 14.
hxg3 {[%clk 0:02:18]} 14... Qxg3 {[%clk 0:02:47.2]} 15. Qe1 {[%clk 0:02:19.7]}
15... Qg6 {[%clk 0:02:46.3]} 16. Nc3 {[%clk 0:02:14.3]} 16... b6 {[%clk
0:02:43.9]} 17. b4 {[%clk 0:01:56.4]} 17... bxc5 {[%clk 0:02:43]} 18. bxc5
{[%clk 0:01:56.7]} 18... Ba6 {[%clk 0:02:42.9]} 19. Rf2 {[%clk 0:01:57.9]} 19...
Rab8 {[%clk 0:02:44.1]} 20. Rb1 {[%clk 0:01:55.5]} 20... Bd3 {[%clk 0:02:43.8]}
21. Rbb2 {[%clk 0:01:52.2]} 21... h5 {[%clk 0:02:40.6]} 22. Rfd2 {[%clk
0:01:52.6]} 22... Bc4 {[%clk 0:02:36.6]} 23. Qf2 {[%clk 0:01:44.9]} 23... Nf6
{[%clk 0:02:26.5]} 24. Kh2 {[%clk 0:01:33.3]} 24... Rxb2 {[%clk 0:02:06.2]} 25.
Rxb2 {[%clk 0:01:33.1]} 25... Qd3 {[%clk 0:02:08.1]} 26. Qd2 {[%clk 0:01:29.5]}
26... Qh7 {[%clk 0:02:02]} 27. Bh3 {[%clk 0:01:21.7]} 27... h4 {[%clk
0:01:57.4]} 28. Bxe6+ {[%clk 0:01:19]} 28... Kh8 {[%clk 0:01:59.3]} 29. Qc2
{[%clk 0:01:13.6]} 29... Qh6 {[%clk 0:01:54.7]} 30. Qf5 {[%clk 0:00:55.7]} 30...
Nh7 {[%clk 0:01:45.8]} 31. Qg4 {[%clk 0:00:53.8]} 31... g5 {[%clk 0:01:47.2]}
32. f5 {[%clk 0:00:20.2]} 32... Nf6 {[%clk 0:01:45]} 33. Qh3 {[%clk 0:00:21.5]}
33... g4 {[%clk 0:01:44.8]} 34. fxg4 {[%clk 0:00:22.1]} 34... Qg5 {[%clk
0:01:46.5]} 35. Rg2 {[%clk 0:00:21.1]} 35... Bf1 {[%clk 0:01:47.5]} 36. Qf3
{[%clk 0:00:16.2]} 36... Bxg2 {[%clk 0:01:48.1]} 37. Kxg2 {[%clk 0:00:18.1]}
37... Nxg4 {[%clk 0:01:48.1]} 38. Qf4 {[%clk 0:00:18.1]} 38... Nxe3+ {[%clk
0:01:46.6]} 39. Kf3 {[%clk 0:00:19.3]} 39... Qxf4+ {[%clk 0:01:47.6]} 40. Kxf4
{[%clk 0:00:21.2]} 40... h3 {[%clk 0:01:44.1]} 41. Ne2 {[%clk 0:00:20.1]} 41...
h2 {[%clk 0:01:38.4]} 42. Ng3 {[%clk 0:00:20.9]} 42... Nf1 {[%clk 0:01:39.6]}
43. Nh1 {[%clk 0:00:22.1]} 43... Kg7 {[%clk 0:01:38.8]} 44. Kf3 {[%clk 0:00:22]}
44... Kf6 {[%clk 0:01:40.1]} 45. Kf2 {[%clk 0:00:22.8]} 45... Nd2 {[%clk
0:01:40.4]} 46. Kg2 {[%clk 0:00:21.8]} 46... Rh8 {[%clk 0:01:37.5]} 47. Bd7
{[%clk 0:00:21.2]} 47... Rg8+ {[%clk 0:01:25]} 48. Kxh2 {[%clk 0:00:20.7]} 48...
Nf3+ {[%clk 0:01:26.6]} 49. Kh3 {[%clk 0:00:22.1]} 49... Nxd4 {[%clk 0:01:28.5]}
50. Ng3 {[%clk 0:00:22.2]} 50... Rg7 {[%clk 0:01:26.1]} 51. Nh5+ {[%clk
0:00:22.2]} 51... Kf7 {[%clk 0:01:25.9]} 52. Nxg7 {[%clk 0:00:23.5]} 52... Kxg7
{[%clk 0:01:27.8]} 53. Kg4 {[%clk 0:00:21.8]} 53... Kf6 {[%clk 0:01:29.3]} 54.
Kf4 {[%clk 0:00:23.3]} 54... a5 {[%clk 0:01:30.4]} 55. Bc8 {[%clk 0:00:19.9]}
55... Ne2+ {[%clk 0:01:15.4]} 56. Ke3 {[%clk 0:00:20.6]} 56... Nc3 {[%clk
0:01:17]} 57. Bd7 {[%clk 0:00:20.4]} 57... Nxa2 {[%clk 0:01:09.4]} 58. Bxc6
{[%clk 0:00:20.6]} 58... Nb4 {[%clk 0:01:11.3]} 59. Ba4 {[%clk 0:00:18.6]} 59...
Kxf5 {[%clk 0:01:11.4]} 60. c6 {[%clk 0:00:19.8]} 60... Na6 {[%clk 0:01:07.8]}
61. Kd4 {[%clk 0:00:20.4]} 61... Ke6 {[%clk 0:01:08.9]} 62. Bb3 {[%clk 0:00:17]}
62... Nc7 {[%clk 0:01:10.2]} 63. Kc5 {[%clk 0:00:18.2]} 63... Ke5 {[%clk
0:01:11.3]} 64. Kb6 {[%clk 0:00:14]} 64... Kd6 {[%clk 0:01:12.2]} 65. Bxd5
{[%clk 0:00:13.2]} 65... a4 {[%clk 0:01:13.8]} 66. Ba2 {[%clk 0:00:13.7]} 66...
a3 {[%clk 0:01:12.8]} 67. Ka5 {[%clk 0:00:13.3]} 67... Kxc6 {[%clk 0:01:11.9]}
68. Kb4 {[%clk 0:00:14.2]} 68... Nb5 {[%clk 0:01:13.5]} 69. Bc4 {[%clk
0:00:15.2]} 69... Kb6 {[%clk 0:01:14.7]} 70. Ba2 {[%clk 0:00:15.7]} 70... Kc6
{[%clk 0:01:13.8]} 71. Bc4 {[%clk 0:00:16.5]} 71... Kb6 {[%clk 0:01:14.9]} 72.
Ba2 {[%clk 0:00:17.7]} 72... Nd6 {[%clk 0:01:16.1]} 73. Kxa3 {[%clk 0:00:18.6]}
73... Kc5 {[%clk 0:01:18]} 74. Kb3 {[%clk 0:00:18.5]} 74... Kd4 {[%clk
0:01:19.9]} 75. Kb4 {[%clk 0:00:19.7]} 75... Ne4 {[%clk 0:01:21.8]} 76. Bb3
{[%clk 0:00:21]} 76... Nc5 {[%clk 0:01:23.7]} 77. Ba2 {[%clk 0:00:22.6]} 1/2-1/2